bitfinex/quotes_BTCUSD_20250903
["timestamp","ask_amount","ask_price","bid_price","bid_amount"]
[1756920609382,1.02733051,112620.0,112610.0,0.82155736]
[1756920609581,0.54968543,112620.0,112610.0,0.64391324]
[1756920609787,1.02733051,112620.0,112610.0,0.82451736]
[1756920609997,1.02525051,112620.0,112610.0,0.82451736]
[1756920610988,1.02733051,112620.0,112610.0,0.64691324]
[1756920611408,1.03034051,112620.0,112610.0,0.49216324]
[1756920611626,1.03034051,112620.0,112610.0,0.40024725]
[1756920611956,1.20478051,112620.0,112610.0,0.54984725]
[1756920615518,1.17994051,112620.0,112610.0,0.54984725]
[1756920615718,1.03034051,112620.0,112610.0,0.55194725]
[1756920615964,0.54760543,112620.0,112610.0,0.73255137]
[1756920616086,1.02525051,112620.0,112610.0,0.73255137]
[1756920617877,1.02733051,112620.0,112610.0,0.55494725]
[1756920618399,1.03034051,112620.0,112610.0,0.00024725]
[1756920618612,1.03034051,112620.0,112610.0,0.15194725]
[1756920618835,1.03034051,112620.0,112610.0,0.55194725]
[1756920619344,1.02733051,112620.0,112610.0,0.72955137]
[1756920620966,1.02733051,112620.0,112610.0,0.72955135]
[1756920621391,1.02733051,112620.0,112610.0,0.55194723]
[1756920621640,1.03034051,112620.0,112610.0,0.72955135]
[1756920622947,1.03034051,112620.0,112610.0,0.55194723]
[1756920623206,1.02733051,112620.0,112610.0,0.73255135]
[1756920623819,0.54968543,112620.0,112610.0,0.73255135]
[1756920624092,0.54760543,112620.0,112610.0,0.73255135]
[1756920624349,1.02525051,112620.0,112610.0,0.73255135]
[1756920624894,1.03034051,112620.0,112610.0,0.54984723]
[1756920626005,1.03034051,112620.0,112610.0,0.72745135]
[1756920626213,1.03034051,112620.0,112610.0,0.72955135]
[1756920626677,1.02733051,112620.0,112610.0,0.72955135]
[1756920627679,1.03034051,112620.0,112610.0,0.55194723]
[1756920627891,1.03034051,112620.0,112610.0,0.72955135]
[1756920628235,1.02733051,112620.0,112610.0,0.72955135]
[1756920628467,1.02733051,112620.0,112610.0,0.40234723]
[1756920628753,1.03034051,112620.0,112610.0,0.14980723]
[1756920629060,1.03034051,112620.0,112610.0,0.54980723]
[1756920629826,1.03034051,112620.0,112610.0,0.40024723]
[1756920630058,1.03034051,112620.0,112610.0,0.54980723]
[1756920631251,1.03034051,112620.0,112610.0,0.72741135]
[1756920631662,1.03034051,112620.0,112610.0,0.54980723]
[1756920632419,1.03034051,112620.0,112610.0,0.40024723]
[1756920632626,1.03034051,112620.0,112610.0,0.54980723]
[1756920636254,1.17990051,112620.0,112610.0,0.40024723]
[1756920636487,1.17990051,112620.0,112610.0,0.54976723]
[1756920637146,1.17986051,112620.0,112610.0,0.54976722]
[1756920638006,1.17986051,112620.0,112610.0,0.14976722]
[1756920642016,1.17986051,112620.0,112610.0,0.00024722]
[1756920643472,1.03034051,112620.0,112610.0,0.00024722]
[1756920643687,0.70221543,112620.0,112610.0,0.00024722]
[1756920643919,1.7771043,112620.0,112610.0,0.00024722]
[1756920644359,1.6275843,112620.0,112610.0,0.00024722]
[1756920644546,1.7771043,112620.0,112610.0,0.00024722]
[1756920645849,0.70221543,112620.0,112610.0,0.00024722]
[1756920646111,1.7771043,112620.0,112610.0,0.00024722]
[1756920646761,1.6275843,112620.0,112610.0,0.00024722]
[1756920647005,1.7771043,112620.0,112610.0,0.00024722]
[1756920648754,1.6275843,112620.0,112610.0,0.00024722]
[1756920648959,1.6245743,112620.0,112610.0,0.00238722]
[1756920649196,0.54760543,112620.0,112610.0,0.00553722]
[1756920649408,1.26419801,112620.0,112610.0,0.18314134]
[1756920650849,0.54760543,112620.0,112610.0,0.18314134]
[1756920651059,1.26419801,112620.0,112610.0,0.18314134]
[1756920652622,1.26419801,112620.0,112610.0,0.58314134]
[1756920654180,1.08660966,112620.0,112610.0,0.58314134]
[1756920654384,1.26419801,112620.0,112610.0,0.58314134]
[1756920654590,0.37001708,112620.0,112610.0,0.58314134]
[1756920654795,1.26419801,112620.0,112610.0,0.58314134]
[1756920656026,0.54760543,112620.0,112610.0,0.58314134]
[1756920656157,1.26419801,112620.0,112610.0,0.58314134]
[1756920656362,1.26419801,112620.0,112610.0,0.73262134]
[1756920656573,1.26419801,112620.0,112610.0,0.58314134]
[1756920656809,1.26419801,112620.0,112610.0,0.73262134]
[1756920660040,1.26419801,112620.0,112610.0,0.82453733]
[1756920660446,1.26419801,112620.0,112610.0,0.67505733]
[1756920660627,1.26419801,112620.0,112610.0,0.82453733]
[1756920661690,0.54760543,112620.0,112610.0,0.82453733]
[1756920661905,1.26419801,112620.0,112610.0,0.82453733]
[1756920662315,1.25919801,112620.0,112610.0,0.82453733]
[1756920664617,1.25919801,112620.0,112610.0,0.67505733]
[1756920664812,1.26117801,112620.0,112610.0,0.64374321]
[1756920665025,1.26417801,112620.0,112610.0,0.64374321]
[1756920666022,1.6224743,112620.0,112610.0,0.54968722]
[1756920666250,1.6224743,112620.0,112610.0,0.14968722]
[1756920666740,1.6224743,112620.0,112610.0,0.54968722]
[1756920666961,1.26417801,112620.0,112610.0,0.54968722]
[1756920667415,1.26417801,112620.0,112610.0,0.40024722]
[1756920667657,1.26417801,112620.0,112610.0,0.54968722]
[1756920668352,1.6224743,112620.0,112610.0,0.40024722]
[1756920668576,1.7719143,112620.0,112610.0,0.40024722]
[1756920668767,1.7957843,112620.0,112610.0,0.40024722]
[1756920668999,1.7957843,112620.0,112610.0,0.40024721]
[1756920671683,1.7957843,112620.0,112610.0,0.00024721]
[1756920671908,2.81314916,112620.0,112610.0,0.00024721]
[1756920672178,1.88770029,112620.0,112610.0,0.00024721]
[1756920672824,1.73826029,112620.0,112610.0,0.00024721]
[1756920673035,1.88770029,112620.0,112610.0,0.00024721]
[1756920673805,1.73826029,112620.0,112610.0,0.00024721]
[1756920674030,1.88770029,112620.0,112610.0,0.00024721]
[1756920680588,1.73826029,112620.0,112610.0,0.00024721]
[1756920680825,1.88770029,112620.0,112610.0,0.00024721]
[1756920683151,1.86383029,112620.0,112610.0,0.00024721]
[1756920683392,1.71439029,112620.0,112610.0,0.00024721]
[1756920683628,1.71439029,112620.0,112610.0,0.00219721]
[1756920683629,1.86383029,112620.0,112610.0,0.00219721]
[1756920683839,0.54260543,112620.0,112610.0,0.00541721]
[1756920684063,1.6174943,112620.0,112610.0,0.15485721]
[1756920684192,1.6196543,112620.0,112610.0,0.15485721]
[1756920684411,1.6226343,112620.0,112610.0,0.00219721]
[1756920684611,1.7720743,112620.0,112610.0,0.00024721]
[1756920685032,2.84696317,112620.0,112610.0,0.00024721]
[1756920685235,1.7720743,112620.0,112610.0,0.00024721]
[1756920687787,1.86399029,112620.0,112610.0,0.00024721]
[1756920687954,1.6196543,112620.0,112610.0,0.00219721]
[1756920688161,1.6174943,112620.0,112610.0,0.00541721]
[1756920688604,1.6196543,112620.0,112610.0,0.00541721]
[1756920688830,1.7720743,112620.0,112610.0,0.00024721]
[1756920689031,1.7720743,112620.0,112610.0,0.00219721]
[1756920689232,1.7690943,112620.0,112610.0,0.00219721]
[1756920689582,1.7720743,112620.0,112610.0,0.00219721]
[1756920689805,1.7690943,112620.0,112610.0,0.00541721]
[1756920689968,1.7690943,112620.0,112610.0,0.00219721]
[1756920691451,1.7720743,112620.0,112610.0,0.00024721]
[1756920692553,1.7690543,112620.0,112610.0,0.00219721]
[1756920693024,1.7720343,112620.0,112610.0,0.00024721]
[1756920695255,1.86395029,112620.0,112610.0,0.00024721]
[1756920695695,3.03075515,112620.0,112610.0,0.00024721]
[1756920695932,2.93883916,112620.0,112610.0,0.00024721]
[1756920696588,2.93883916,112620.0,112610.0,1e-08]
[1756920696589,3.00283251,112620.0,112610.0,1e-08]
[1756920697223,0.17763566,112590.0,112580.0,0.40322]
[1756920697437,0.89700379,112590.0,112580.0,0.40517]
[1756920697644,0.89422824,112590.0,112580.0,0.40517]
[1756920697874,0.92092909,112590.0,112580.0,0.40517]
[1756920698298,0.92092909,112590.0,112580.0,0.40717]
[1756920699375,0.20433651,112590.0,112580.0,0.41117]
[1756920699585,0.92092909,112590.0,112580.0,0.41117]
[1756920699770,0.92092909,112590.0,112580.0,0.01117]
[1756920700141,0.92092909,112590.0,112580.0,0.41117]
[1756920700338,0.20433651,112590.0,112580.0,0.41117]
[1756920700577,0.92092909,112590.0,112580.0,0.41117]
[1756920702697,0.92293909,112590.0,112580.0,0.41117]
[1756920702900,0.92293909,112590.0,112580.0,0.40795]
[1756920703126,1.07532909,112590.0,112580.0,0.40795]
[1756920703340,1.07532909,112590.0,112580.0,0.406]
[1756920703546,0.83677704,112590.0,112580.0,0.402]
[1756920703953,0.83677704,112590.0,112580.0,0.403]
[1756920704362,0.83677704,112590.0,112580.0,0.404]
[1756920704565,0.68737704,112590.0,112580.0,0.004]
[1756920704802,0.83677704,112590.0,112580.0,0.004]
[1756920705010,0.83677704,112590.0,112580.0,0.003]
[1756920705218,0.51765144,112580.0,112570.0,0.55238]
[1756920705422,0.99569197,112580.0,112570.0,0.40502]
[1756920705864,1.02239642,112580.0,112570.0,0.40502]
[1756920706421,1.02239642,112580.0,112570.0,0.4051449]
[1756920706630,1.03167259,112580.0,112570.0,0.4071449]
[1756920707504,1.03368259,112580.0,112570.0,0.4071449]
[1756920707919,1.03167259,112580.0,112570.0,0.4071449]
[1756920708102,1.03167259,112580.0,112570.0,0.0071449]
[1756920708739,1.03368259,112580.0,112570.0,0.4071449]
[1756920709164,1.03167259,112580.0,112570.0,0.4071449]
[1756920709370,1.03368259,112580.0,112570.0,0.4071449]
[1756920710242,1.18308259,112580.0,112570.0,0.4071449]
[1756920710455,1.18607259,112580.0,112570.0,0.4041649]
[1756920710664,1.18607259,112580.0,112570.0,0.0021249]
[1756920711116,1.80106783,112580.0,112570.0,0.0021249]
[1756920711334,1.82523783,112580.0,112570.0,0.0021249]
[1756920712188,1.89351783,112580.0,112570.0,0.0021249]
[1756920713464,0.74299805,112580.0,112570.0,0.0021249]
[1756920713682,1.37043858,112580.0,112570.0,0.0021249]
[1756920714321,1.22103858,112580.0,112570.0,0.0021249]
[1756920714530,1.34630858,112580.0,112570.0,0.0021249]
[1756920714866,1.27503858,112580.0,112570.0,0.0041649]
[1756920715074,1.18111259,112580.0,112570.0,0.0071449]
[1756920715498,1.03167259,112580.0,112570.0,0.0071449]
[1756920715747,0.84111259,112580.0,112570.0,0.0071449]
[1756920716161,0.69167259,112580.0,112570.0,0.0071449]
[1756920716604,1.03167259,112580.0,112570.0,0.0071449]
[1756920717133,1.03167259,112580.0,112570.0,0.4071449]
[1756920719887,1.02239642,112580.0,112570.0,0.4071449]
[1756920720106,1.03177858,112580.0,112570.0,0.4071449]
[1756920720791,1.02239642,112580.0,112570.0,0.4071449]
[1756920721018,0.84474498,112580.0,112570.0,0.58481212]
[1756920721229,0.81804053,112580.0,112570.0,0.58481212]
[1756920721428,0.81804053,112580.0,112570.0,0.67672811]
[1756920721625,0.99569197,112580.0,112570.0,0.82616811]
[1756920721760,0.81804053,112580.0,112570.0,0.82616811]
[1756920721983,0.34,112580.0,112570.0,0.89444811]
[1756920722186,0.17763419,112600.0,112590.0,0.17763566]
[1756920722396,0.66776322,112600.0,112590.0,0.15446]
[1756920722617,0.69168648,112600.0,112590.0,0.15446]
[1756920722818,1.03168648,112600.0,112590.0,0.15446]
[1756920723021,1.02237329,112600.0,112590.0,0.33209566]
[1756920723433,1.02337329,112600.0,112590.0,0.33209566]
[1756920723642,0.99667472,112600.0,112590.0,0.42401165]
[1756920724134,0.99667472,112600.0,112590.0,0.27457165]
[1756920724338,0.99667472,112600.0,112590.0,0.42401165]
[1756920724691,0.99567472,112600.0,112590.0,0.42401165]
[1756920725016,0.99567472,112600.0,112590.0,0.82401165]
[1756920725709,0.99767472,112600.0,112590.0,0.49693599]
[1756920725920,1.47772525,112600.0,112590.0,0.55344]
[1756920726164,0.99968472,112600.0,112590.0,0.55344]
[1756920726383,0.99768472,112600.0,112590.0,0.55344]
[1756920727181,1.0069342,112600.0,112590.0,0.55344]
[1756920727650,1.0069342,112600.0,112590.0,0.40404]
[1756920727876,1.0069342,112600.0,112590.0,0.55344]
[1756920728099,1.0049242,112600.0,112590.0,0.55642]
[1756920729579,1.0069142,112600.0,112590.0,0.55642]
[1756920730526,1.0049242,112600.0,112590.0,0.55642]
[1756920730762,1.0069142,112600.0,112590.0,0.40404]
[1756920730973,1.0069142,112600.0,112590.0,0.55344]
[1756920732002,1.0069142,112600.0,112590.0,0.55649]
[1756920733271,1.0049242,112600.0,112590.0,0.40709]
[1756920733478,1.0049242,112600.0,112590.0,0.55649]
[1756920733658,0.51763419,112600.0,112590.0,0.73412566]
[1756920733898,0.34,112600.0,112590.0,0.82604165]
[1756920734320,0.84064922,112610.0,112600.0,0.17761989]
[1756920734321,0.55320869,112610.0,112600.0,0.17761989]
[1756920734521,0.55320869,112610.0,112600.0,0.42093588]
[1756920734766,0.55320869,112610.0,112600.0,0.42398588]
[1756920735033,0.52651202,112610.0,112600.0,0.42398588]
[1756920736011,0.52751202,112610.0,112600.0,0.09696599]
[1756920736202,0.52751202,112610.0,112600.0,0.42398588]
[1756920736663,0.52651202,112610.0,112600.0,0.42398588]
[1756920737280,0.52751202,112610.0,112600.0,0.82398588]
[1756920737531,1.00555255,112610.0,112600.0,0.64636599]
[1756920738175,1.01072255,112610.0,112600.0,0.5494]
[1756920738366,1.01072255,112610.0,112600.0,0.5514]
[1756920738647,1.01072255,112610.0,112600.0,0.55136]
[1756920738850,1.01072255,112610.0,112600.0,0.402]
[1756920739049,0.53168202,112610.0,112600.0,0.55136]
[1756920739254,1.15908255,112610.0,112600.0,0.55136]
[1756920740782,0.67786202,112610.0,112600.0,0.55336]
[1756920740986,1.15590255,112610.0,112600.0,0.55641]
[1756920741193,0.52651202,112610.0,112600.0,0.73402989]
[1756920741425,0.52651202,112610.0,112600.0,0.55641]
[1756920741638,1.00455255,112610.0,112600.0,0.55641]
[1756920742693,0.52651202,112610.0,112600.0,0.55641]
[1756920743283,0.52651202,112610.0,112600.0,0.73402989]
[1756920744080,0.52651202,112610.0,112600.0,0.82594588]
[1756920744453,0.51760412,112610.0,112600.0,0.82594588]
[1756920745407,0.51959412,112610.0,112600.0,0.64832599]
[1756920745608,0.51959412,112610.0,112600.0,0.64960599]
[1756920745959,0.34,112610.0,112600.0,0.64968599]
[1756920746152,0.51760412,112610.0,112600.0,0.82730588]
[1756920746590,0.51959412,112610.0,112600.0,0.82730588]
[1756920746799,0.99763465,112610.0,112600.0,0.82730588]
[1756920747002,0.51959412,112610.0,112600.0,0.82425588]
[1756920747200,0.99763465,112610.0,112600.0,0.82730588]
[1756920747404,0.51760412,112610.0,112600.0,0.82730588]
[1756920747626,0.99763465,112610.0,112600.0,0.67658588]
[1756920747869,0.51959412,112610.0,112600.0,0.49591599]
[1756920747978,1.00081465,112610.0,112600.0,0.64495599]
[1756920748179,1.00081465,112610.0,112600.0,0.402]
[1756920748395,1.00081465,112610.0,112600.0,0.55308]
[1756920748797,0.52277412,112610.0,112600.0,0.55308]
[1756920749054,1.00081465,112610.0,112600.0,0.73069989]
[1756920749253,1.00081465,112610.0,112600.0,0.55308]
[1756920749457,0.52277412,112610.0,112600.0,0.55308]
[1756920749658,1.00081465,112610.0,112600.0,0.55308]
[1756920749993,0.52277412,112610.0,112600.0,0.55308]
[1756920750187,1.00081465,112610.0,112600.0,0.55508]
[1756920750492,1.00081465,112610.0,112600.0,0.55308]
[1756920750637,0.51959412,112610.0,112600.0,0.73269989]
[1756920750837,0.99564465,112610.0,112600.0,0.73574989]
[1756920751266,0.51760412,112610.0,112600.0,0.73574989]
[1756920751528,0.99763465,112610.0,112600.0,0.73269989]
[1756920751856,0.99564465,112610.0,112600.0,0.73574989]
[1756920752296,0.51959412,112610.0,112600.0,0.73269989]
[1756920752492,0.51760412,112610.0,112600.0,0.73574989]
[1756920753100,0.99564465,112610.0,112600.0,0.73574989]
[1756920753601,0.51760412,112610.0,112600.0,0.73574989]
[1756920753788,0.99564465,112610.0,112600.0,0.73574989]
[1756920753997,0.51760412,112610.0,112600.0,0.73574989]
[1756920754183,0.51959412,112610.0,112600.0,0.57961989]
[1756920754363,1.00081465,112610.0,112600.0,0.55324]
[1756920754787,1.00081465,112610.0,112600.0,0.73085989]
[1756920754935,1.00081465,112610.0,112600.0,0.55324]
[1756920756670,1.00081465,112610.0,112600.0,0.402]
[1756920756880,1.00081465,112610.0,112600.0,0.55316]
[1756920757297,1.02751144,112610.0,112600.0,0.55316]
[1756920758005,0.54947091,112610.0,112600.0,0.55316]
[1756920758134,1.02751144,112610.0,112600.0,0.55316]
[1756920758638,1.02234144,112610.0,112600.0,0.55516]
[1756920758860,0.54430091,112610.0,112600.0,0.73582989]
[1756920759316,0.34,112610.0,112600.0,0.82774588]
[1756920759528,0.54426547,112630.0,112620.0,0.17758835]
[1756920759704,0.17757303,112630.0,112620.0,0.33390835]
[1756920759942,0.5203476,112630.0,112620.0,0.33390835]
[1756920760153,0.51757303,112630.0,112620.0,0.33390835]
[1756920760342,0.99770356,112630.0,112620.0,0.73080835]
[1756920760840,0.99561356,112630.0,112620.0,0.73390835]
[1756920761001,0.51757303,112630.0,112620.0,0.73390835]
[1756920761209,0.51966303,112630.0,112620.0,0.73390835]
[1756920761416,0.99770356,112630.0,112620.0,0.55422]
[1756920761823,0.99561356,112630.0,112620.0,0.73490835]
[1756920762212,0.51757303,112630.0,112620.0,0.73490835]
[1756920762429,0.99561311,112630.0,112620.0,0.73490835]
[1756920762852,0.99561311,112630.0,112620.0,0.89510434]
[1756920762853,0.34,112630.0,112620.0,0.89510434]
[1756920763072,0.2821939,112640.0,112630.0,0.17757258]
[1756920763073,0.07787364,112640.0,112630.0,0.17757258]
[1756920763285,0.07829508,112640.0,112630.0,0.27686822]
[1756920763526,0.77625644,112640.0,112630.0,0.27464857]
[1756920763734,0.41552076,112640.0,112630.0,0.27464857]
[1756920763936,0.95312893,112640.0,112630.0,0.09397599]
[1756920764164,1.31528029,112640.0,112630.0,0.24335599]
[1756920764373,1.31528029,112640.0,112630.0,0.24541599]
[1756920764590,1.31728029,112640.0,112630.0,0.24335599]
[1756920764800,0.60135757,112640.0,112630.0,0.24541599]
[1756920765014,0.59607757,112640.0,112630.0,0.24851599]
[1756920765229,1.31409029,112640.0,112630.0,0.24851599]
[1756920765445,1.31409029,112640.0,112630.0,0.24541599]
[1756920765657,1.31409029,112640.0,112630.0,0.24335599]
[1756920765863,0.17757258,112630.0,112620.0,0.64896602]
[1756920766071,0.18243715,112630.0,112620.0,0.49478201]
[1756920766280,0.53830851,112630.0,112620.0,0.49478201]
[1756920766610,0.53762394,112630.0,112620.0,0.89168201]
[1756920766836,0.54081394,112630.0,112620.0,0.89168201]
[1756920767039,0.54081394,112630.0,112620.0,0.56119599]
[1756920767263,0.54081394,112630.0,112620.0,0.71303599]
[1756920768117,0.18285258,112630.0,112620.0,0.71503599]
[1756920768350,0.17757258,112630.0,112620.0,0.89468434]
[1756920768565,0.00277457,112630.0,112620.0,0.89778434]
[1756920768733,0.18562715,112630.0,112620.0,0.71503599]
[1756920768947,0.52285258,112630.0,112620.0,0.62384]
[1756920769154,1.2387753,112630.0,112620.0,0.403]
[1756920769370,1.3914953,112630.0,112620.0,0.403]
[1756920769540,1.41818829,112630.0,112620.0,0.403]
[1756920770135,1.41818829,112630.0,112620.0,0.003]
[1756920770788,1.44164829,112630.0,112620.0,0.003]
[1756920771608,1.19220782,112630.0,112620.0,0.003]
[1756920773134,1.03948782,112630.0,112620.0,0.003]
[1756920773340,1.19236782,112630.0,112620.0,0.003]
[1756920773936,0.51758835,112620.0,112610.0,0.15288]
[1756920774142,0.9840706,112620.0,112610.0,0.15288]
[1756920774384,0.9893506,112620.0,112610.0,0.55288]
[1756920774600,1.01604478,112620.0,112610.0,0.55288]
[1756920775328,1.01604478,112620.0,112610.0,0.55488]
[1756920775581,0.36669418,112620.0,112610.0,0.73454412]
[1756920775813,0.34,112620.0,112610.0,0.73764412]
[1756920776261,0.34,112620.0,112610.0,0.73864412]
[1756920776457,0.72852085,112640.0,112620.0,0.17758835]
[1756920776709,0.34277457,112630.0,112620.0,0.27260434]
[1756920776930,0.34,112630.0,112620.0,0.42536434]
[1756920777119,0.34,112630.0,112620.0,0.42742434]
[1756920777862,0.34,112630.0,112620.0,0.42842434]
[1756920778085,0.51757258,112630.0,112620.0,0.42842434]
[1756920779139,0.34,112630.0,112620.0,0.42842434]
[1756920779595,0.51757258,112630.0,112620.0,0.42842434]
[1756920780052,0.51757258,112630.0,112620.0,0.82842434]
[1756920780531,0.51757258,112630.0,112620.0,0.65083599]
[1756920780816,0.51966258,112630.0,112620.0,0.82532434]
[1756920781015,0.51966258,112630.0,112620.0,0.82842434]
[1756920781161,0.51757258,112630.0,112620.0,0.82842434]
[1756920781769,0.34,112630.0,112620.0,0.82842434]
[1756920782008,0.51757258,112630.0,112620.0,0.82842434]
[1756920783220,0.51966258,112630.0,112620.0,0.82842434]
[1756920783722,0.51757258,112630.0,112620.0,0.82842434]
[1756920784480,0.51966258,112630.0,112620.0,0.82532434]
[1756920784731,0.98933483,112630.0,112620.0,0.64773599]
[1756920784973,0.51966258,112630.0,112620.0,0.64773599]
[1756920785216,0.52285258,112630.0,112620.0,0.64603599]
[1756920786167,0.51966258,112630.0,112620.0,0.64809599]
[1756920786396,0.98933483,112630.0,112620.0,0.64603599]
[1756920786613,0.98933483,112630.0,112620.0,0.401]
[1756920786846,0.98933483,112630.0,112620.0,0.55404]
[1756920788256,0.51757258,112630.0,112620.0,0.73678835]
[1756920788712,0.98614483,112630.0,112620.0,0.73678835]
[1756920788942,0.52259258,112630.0,112620.0,0.5561]
[1756920789162,0.98907483,112630.0,112620.0,0.73368835]
[1756920789384,0.98907483,112630.0,112620.0,0.5561]
[1756920790519,0.98907483,112630.0,112620.0,0.55404]
[1756920792771,0.98614483,112630.0,112620.0,0.73692835]
[1756920793561,0.87777812,112630.0,112620.0,0.73368835]
[1756920794015,0.87568812,112630.0,112620.0,0.73692835]
[1756920794750,5.87781812,112630.0,112620.0,0.73692835]
[1756920794990,5.34,112630.0,112620.0,0.73692835]
[1756920795234,5.69811554,112630.0,112620.0,0.73692835]
[1756920795837,5.51757258,112630.0,112620.0,0.73692835]
[1756920796078,5.34,112630.0,112620.0,0.82884434]
[1756920796926,5.69811554,112630.0,112620.0,0.82884434]
[1756920798956,5.34,112630.0,112620.0,0.82884434]
[1756920805464,5.34,112630.0,112620.0,1.18695988]
[1756920806448,5.34,112630.0,112620.0,0.82884434]
[1756920808492,5.51757258,112630.0,112620.0,0.67580434]
[1756920808693,5.87781812,112630.0,112620.0,0.82504434]
[1756920809157,5.88074812,112630.0,112620.0,0.82500434]
[1756920809333,5.88074812,112630.0,112620.0,0.67050434]
[1756920809546,5.34506,112630.0,112620.0,0.82294434]
[1756920809752,5.52263258,112630.0,112620.0,0.82294434]
[1756920809953,5.88074812,112630.0,112620.0,0.82294434]
[1756920810111,5.70317554,112630.0,112620.0,0.82294434]
[1756920810563,5.88074812,112630.0,112620.0,0.82294434]
[1756920813647,5.70317554,112630.0,112620.0,0.82500434]
[1756920813953,5.70317554,112630.0,112620.0,0.89324434]
[1756920814255,5.88074812,112630.0,112620.0,0.89324434]
[1756920814665,5.70024554,112630.0,112620.0,0.89324434]
[1756920814890,5.70024554,112630.0,112620.0,0.89648434]
[1756920814891,5.34,112630.0,112620.0,0.89648434]
[1756920815312,5.34213,112630.0,112620.0,0.89648434]
[1756920815526,5.34213,112630.0,112620.0,0.89324434]
[1756920815944,5.70317554,112630.0,112620.0,0.89118434]
[1756920816159,5.34,112630.0,112620.0,0.89648434]
[1756920816303,5.70024554,112630.0,112620.0,0.89648434]
[1756920816513,5.70024554,112630.0,112620.0,0.89324434]
[1756920817001,5.34213,112630.0,112620.0,0.89324434]
[1756920817215,5.34,112630.0,112620.0,0.89648434]
[1756920818487,5.34213,112630.0,112620.0,0.89648434]
[1756920818797,5.34213,112630.0,112620.0,0.89324434]
[1756920818987,5.34213,112630.0,112620.0,0.89648434]
[1756920819348,5.70024554,112630.0,112620.0,0.89648434]
[1756920819779,5.34213,112630.0,112620.0,0.89648434]
[1756920819994,5.70024554,112630.0,112620.0,0.89616434]
[1756920820869,5.34213,112630.0,112620.0,0.89616434]
[1756920821138,5.34,112630.0,112620.0,0.89616434]
[1756920821552,5.34,112630.0,112620.0,1.25427988]
[1756920821974,5.34,112630.0,112620.0,1.26345081]
[1756920822386,5.0,112630.0,112620.0,0.90533527]
[1756920822581,5.0,112630.0,112620.0,1.26345081]
[1756920822825,5.0,112630.0,112620.0,0.90533527]
[1756920823030,5.0,112630.0,112620.0,1.26345081]
[1756920823592,5.0,112630.0,112620.0,0.90533527]
[1756920828754,5.00209,112630.0,112620.0,0.74080434]
[1756920828978,5.0052,112630.0,112620.0,0.73874434]
[1756920829201,5.0052,112630.0,112620.0,0.89054434]
[1756920829636,5.0,112630.0,112620.0,0.89593434]
[1756920829839,5.00209,112630.0,112620.0,0.89269434]
[1756920830048,5.0052,112630.0,112620.0,0.89054434]
[1756920832734,5.00209,112630.0,112620.0,0.89593434]
[1756920832943,5.00209,112630.0,112620.0,0.89269434]
[1756920833149,5.0052,112630.0,112620.0,0.89269434]
[1756920833334,5.0052,112630.0,112620.0,0.89054434]
[1756920835008,5.0052,112630.0,112620.0,0.89269434]
[1756920836097,5.00209,112630.0,112620.0,0.89269434]
[1756920836738,5.0052,112630.0,112620.0,0.89030434]
[1756920837361,5.00209,112630.0,112620.0,0.89245434]
[1756920837566,5.00209,112630.0,112620.0,0.89030434]
[1756920837836,5.0052,112630.0,112620.0,0.89030434]
[1756920838047,5.0052,112630.0,112620.0,0.89245434]
[1756920838749,5.0052,112630.0,112620.0,0.89030434]
[1756920838963,5.0052,112630.0,112620.0,0.56115599]
[1756920839157,5.18277258,112630.0,112620.0,0.71271599]
[1756920839522,5.6600659,112630.0,112620.0,0.71271599]
[1756920840480,5.18277258,112630.0,112620.0,0.71271599]
[1756920840749,5.6600659,112630.0,112620.0,0.71271599]
[1756920842210,5.00209,112630.0,112620.0,0.89245434]
[1756920842419,5.0,112630.0,112620.0,0.89569434]
[1756920842887,5.0,112630.0,112620.0,1.37298766]
[1756920843362,5.0,112630.0,112620.0,0.89569434]
[1756920844646,5.0,112630.0,112620.0,1.37298766]
[1756920845209,5.0,112630.0,112620.0,0.89569434]
[1756920845508,5.0,112630.0,112620.0,1.37298766]
[1756920846467,5.0,112630.0,112620.0,0.89569434]
[1756920846721,5.0,112630.0,112620.0,0.74413434]
[1756920846911,5.00209,112630.0,112620.0,0.89233434]
[1756920847363,5.00209,112630.0,112620.0,0.74089434]
[1756920847580,5.00209,112630.0,112620.0,0.89233434]
[1756920848025,5.0052,112630.0,112620.0,0.89237434]
[1756920848452,5.00209,112630.0,112620.0,0.74089434]
[1756920848701,5.00209,112630.0,112620.0,0.89233434]
[1756920849526,5.00209,112630.0,112620.0,0.89014434]
[1756920849527,5.18274258,112630.0,112620.0,0.89014434]
[1756920849757,5.6600359,112630.0,112620.0,0.89014434]
[1756920850174,5.18274258,112630.0,112620.0,0.89014434]
[1756920851058,5.6600359,112630.0,112620.0,0.89014434]
[1756920851259,5.18274258,112630.0,112620.0,0.56115599]
[1756920851464,5.6600359,112630.0,112620.0,0.71259599]
[1756920851680,5.6600359,112630.0,112620.0,0.46924]
[1756920851887,5.6600359,112630.0,112620.0,0.62072]
[1756920852515,6.0000359,112630.0,112620.0,0.62072]
[1756920852730,6.0248159,112630.0,112620.0,0.401]
[1756920852961,6.0248159,112630.0,112620.0,0.55248]
[1756920853264,6.1762959,112630.0,112620.0,0.55248]
[1756920853498,6.1762959,112630.0,112620.0,0.401]
[1756920853739,6.20298954,112630.0,112620.0,0.401]
[1756920855716,6.20298954,112630.0,112620.0,0.001]
[1756920857670,6.05150954,112630.0,112620.0,0.001]
[1756920857874,6.20294954,112630.0,112620.0,0.001]
[1756920858079,6.29486553,112630.0,112620.0,0.001]
[1756920858766,0.99488167,112620.0,112610.0,0.54748]
[1756920858964,1.15149167,112620.0,112610.0,0.54748]
[1756920859216,1.15145167,112620.0,112610.0,0.54748]
[1756920859896,1.17323167,112620.0,112610.0,0.54748]
[1756920860086,1.17323167,112620.0,112610.0,0.403]
[1756920860461,1.26514766,112620.0,112610.0,0.403]
[1756920860672,1.26514766,112620.0,112610.0,0.003]
[1756920860938,1.26510766,112620.0,112610.0,0.003]
[1756920861705,1.35702365,112620.0,112610.0,0.003]
[1756920861914,1.33338766,112620.0,112610.0,0.003]
[1756920862781,1.18198766,112620.0,112610.0,0.003]
[1756920862986,0.85613434,112620.0,112610.0,0.003]
[1756920863198,1.18198766,112620.0,112610.0,0.003]
[1756920863452,1.33342766,112620.0,112610.0,0.003]
[1756920863683,1.18198766,112620.0,112610.0,0.003]
[1756920863941,1.42538365,112620.0,112610.0,0.003]
[1756920864152,1.45208417,112620.0,112610.0,0.003]
[1756920864382,1.36016818,112620.0,112610.0,0.003]
[1756920865420,1.381107,112620.0,112610.0,0.003]
[1756920866490,1.85840032,112620.0,112610.0,1e-08]
[1756920866748,1.95031631,112620.0,112610.0,1e-08]
[1756920867401,1.47302299,112620.0,112610.0,1e-08]